[Event "Late-Titled-Tuesday-Blitz-January-16-2024"]
[Site "Chess.com"]
[Date "2024.01.16"]
[Round "6"]
[White "Atousa"]
[Black "laskakid"]
[Result "1-0"]
[WhiteElo "2465"]
[BlackElo "2310"]
[TimeControl "180+1"]
[EndTime "15:04:34 PST"]
[Termination "Atousa won on time"]

1. d4 {[%clk 0:02:59]} 1... d5 {[%clk 0:02:59.6]} 2. c4 {[%clk 0:02:58.8]} 2...
e6 {[%clk 0:02:59.8]} 3. Nc3 {[%clk 0:02:58.8]} 3... c6 {[%clk 0:03:00]} 4. Nf3
{[%clk 0:02:49.9]} 4... dxc4 {[%clk 0:02:59.3]} 5. e3 {[%clk 0:02:46.6]} 5... b5
{[%clk 0:02:58.1]} 6. a4 {[%clk 0:02:44.7]} 6... Bb4 {[%clk 0:02:56.1]} 7. Ne5
{[%clk 0:02:32.3]} 7... Qb6 {[%clk 0:02:17.3]} 8. axb5 {[%clk 0:02:24.9]} 8...
cxb5 {[%clk 0:01:58.4]} 9. Qf3 {[%clk 0:02:15.6]} 9... Qb7 {[%clk 0:01:56.7]}
10. Bd2 {[%clk 0:02:10.4]} 10... Qxf3 {[%clk 0:01:48.6]} 11. Nxf3 {[%clk
0:02:04.1]} 11... Bd7 {[%clk 0:01:36.7]} 12. Ne5 {[%clk 0:02:03.1]} 12... Bxc3
{[%clk 0:01:29.7]} 13. Bxc3 {[%clk 0:02:01.3]} 13... Ne7 {[%clk 0:01:20.5]} 14.
Bb4 {[%clk 0:01:48.1]} 14... Nec6 {[%clk 0:01:12.1]} 15. Bd6 {[%clk 0:01:35.7]}
15... Nxe5 {[%clk 0:01:09.4]} 16. Bxe5 {[%clk 0:01:34.8]} 16... Nc6 {[%clk
0:01:07.3]} 17. Bxg7 {[%clk 0:01:32.4]} 17... Rg8 {[%clk 0:01:06.1]} 18. Bf6
{[%clk 0:01:30.9]} 18... Nb4 {[%clk 0:01:01.1]} 19. Kd2 {[%clk 0:01:29.4]} 19...
Nd5 {[%clk 0:00:58.7]} 20. Be5 {[%clk 0:01:27]} 20... Bc6 {[%clk 0:00:55.1]} 21.
f3 {[%clk 0:01:23.5]} 21... a5 {[%clk 0:00:54]} 22. e4 {[%clk 0:01:16.7]} 22...
Nb4 {[%clk 0:00:45.2]} 23. Kc3 {[%clk 0:01:05.3]} 23... Kd7 {[%clk 0:00:43.6]}
24. Bg3 {[%clk 0:01:00.9]} 24... f5 {[%clk 0:00:40]} 25. exf5 {[%clk 0:00:42]}
25... exf5 {[%clk 0:00:40.1]} 26. Be2 {[%clk 0:00:42.5]} 26... Nd5+ {[%clk
0:00:38.5]} 27. Kd2 {[%clk 0:00:40.9]} 27... a4 {[%clk 0:00:33.7]} 28. Rhg1
{[%clk 0:00:30]} 28... Rae8 {[%clk 0:00:32.5]} 29. Be5 {[%clk 0:00:28.8]} 29...
Nb6 {[%clk 0:00:22]} 30. g4 {[%clk 0:00:23.5]} 30... fxg4 {[%clk 0:00:20.1]} 31.
fxg4 {[%clk 0:00:21]} 31... Bd5 {[%clk 0:00:20.2]} 32. g5 {[%clk 0:00:20]} 32...
b4 {[%clk 0:00:20.1]} 33. h4 {[%clk 0:00:16]} 33... a3 {[%clk 0:00:19.1]} 34.
bxa3 {[%clk 0:00:15.4]} 34... b3 {[%clk 0:00:19.4]} 35. a4 {[%clk 0:00:11.8]}
35... Rc8 {[%clk 0:00:14.7]} 36. Kc3 {[%clk 0:00:11.2]} 36... Ra8 {[%clk
0:00:12.6]} 37. a5 {[%clk 0:00:11.2]} 37... Nc8 {[%clk 0:00:11.1]} 38. Bxc4
{[%clk 0:00:11]} 38... Ne7 {[%clk 0:00:10.9]} 39. Bxd5 {[%clk 0:00:10.8]} 39...
Nxd5+ {[%clk 0:00:11.3]} 40. Kxb3 {[%clk 0:00:11.5]} 40... Rgb8+ {[%clk
0:00:11.1]} 41. Bxb8 {[%clk 0:00:11.3]} 41... Rxb8+ {[%clk 0:00:10.9]} 42. Kc4
{[%clk 0:00:12]} 42... Ne3+ {[%clk 0:00:10.7]} 43. Kd3 {[%clk 0:00:12.3]} 43...
Nd5 {[%clk 0:00:10.6]} 44. Ke4 {[%clk 0:00:11.9]} 44... Nc3+ {[%clk 0:00:10.5]}
45. Kd3 {[%clk 0:00:11.3]} 45... Nd5 {[%clk 0:00:10.9]} 46. Rab1 {[%clk
0:00:11.8]} 46... Nb4+ {[%clk 0:00:09.3]} 47. Rxb4 {[%clk 0:00:10.7]} 47... Rxb4
{[%clk 0:00:09]} 48. Ra1 {[%clk 0:00:10.7]} 48... Rb7 {[%clk 0:00:08.6]} 49. a6
{[%clk 0:00:11.1]} 49... Ra7 {[%clk 0:00:09]} 50. Ke4 {[%clk 0:00:11.9]} 50...
Kd6 {[%clk 0:00:09.3]} 51. Kf5 {[%clk 0:00:12.5]} 51... Kd5 {[%clk 0:00:09.4]}
52. Ra4 {[%clk 0:00:11.8]} 52... Kd6 {[%clk 0:00:08.2]} 53. h5 {[%clk
0:00:12.3]} 53... Kd5 {[%clk 0:00:07.7]} 54. g6 {[%clk 0:00:12.9]} 54... hxg6+
{[%clk 0:00:06.8]} 55. hxg6 {[%clk 0:00:13.8]} 55... Kd6 {[%clk 0:00:06.8]} 56.
Kf6 {[%clk 0:00:14.5]} 56... Kd5 {[%clk 0:00:06.4]} 57. g7 {[%clk 0:00:15]} 1-0

[Event "Late-Titled-Tuesday-Blitz-January-16-2024"]
[Site "Chess.com"]
[Date "2024.01.16"]
[Round "6"]
[White "Igor_Lysyj"]
[Black "karinachess1"]
[Result "1-0"]
[WhiteElo "2863"]
[BlackElo "2628"]
[TimeControl "180+1"]
[EndTime "15:04:36 PST"]
[Termination "Igor_Lysyj won by resignation"]

1. d4 {[%clk 0:02:59.7]} 1... Nf6 {[%clk 0:03:00.1]} 2. c4 {[%clk 0:02:59.6]}
2... e6 {[%clk 0:03:00.7]} 3. Nf3 {[%clk 0:02:59.3]} 3... d5 {[%clk 0:03:01.2]}
4. g3 {[%clk 0:02:59.3]} 4... dxc4 {[%clk 0:03:01.8]} 5. Bg2 {[%clk 0:02:59.2]}
5... Nc6 {[%clk 0:03:02.3]} 6. Qa4 {[%clk 0:02:58.3]} 6... Bb4+ {[%clk
0:03:00.5]} 7. Bd2 {[%clk 0:02:58.1]} 7... Bd6 {[%clk 0:03:00.8]} 8. Na3 {[%clk
0:02:47.9]} 8... Bxa3 {[%clk 0:02:53.5]} 9. Qxa3 {[%clk 0:02:48]} 9... Qd6
{[%clk 0:02:50.5]} 10. Rc1 {[%clk 0:02:43.8]} 10... O-O {[%clk 0:02:25.8]} 11.
Rxc4 {[%clk 0:02:41.6]} 11... Qxa3 {[%clk 0:02:19.8]} 12. bxa3 {[%clk 0:02:41]}
12... Nd5 {[%clk 0:02:17.6]} 13. O-O {[%clk 0:02:37.2]} 13... Bd7 {[%clk
0:02:17]} 14. e3 {[%clk 0:02:35.9]} 14... Rfc8 {[%clk 0:02:07.6]} 15. Rb1 {[%clk
0:02:34.9]} 15... Rab8 {[%clk 0:01:59.5]} 16. Ne1 {[%clk 0:02:31.4]} 16... Nb6
{[%clk 0:01:44.8]} 17. Rc5 {[%clk 0:02:30.1]} 17... Na4 {[%clk 0:01:26.2]} 18.
Rcc1 {[%clk 0:02:29.7]} 18... e5 {[%clk 0:01:24.3]} 19. dxe5 {[%clk 0:02:28.5]}
19... Re8 {[%clk 0:01:00.9]} 20. f4 {[%clk 0:02:20.1]} 20... f6 {[%clk 0:00:55]}
21. exf6 {[%clk 0:01:54.8]} 21... gxf6 {[%clk 0:00:55.4]} 22. Kf2 {[%clk
0:01:54.7]} 22... Bf5 {[%clk 0:00:45.9]} 23. Rb5 {[%clk 0:01:48.2]} 23... Bd7
{[%clk 0:00:25.5]} 24. Rb3 {[%clk 0:01:36.6]} 24... Be6 {[%clk 0:00:20.4]} 25.
Rd3 {[%clk 0:01:33.5]} 25... Bxa2 {[%clk 0:00:19.6]} 26. Bxc6 {[%clk 0:01:17.6]}
26... bxc6 {[%clk 0:00:20.5]} 27. Rxc6 {[%clk 0:01:17.8]} 27... Re7 {[%clk
0:00:17.3]} 28. Bb4 {[%clk 0:01:16.1]} 28... Rf7 {[%clk 0:00:17.7]} 29. Nf3
{[%clk 0:01:12.6]} 29... Nb6 {[%clk 0:00:15]} 30. Rd4 {[%clk 0:01:03.1]} 30...
Bd5 {[%clk 0:00:14.3]} 31. Rxb6 {[%clk 0:01:01.3]} 31... cxb6 {[%clk 0:00:14.9]}
32. Rxd5 {[%clk 0:01:01.5]} 32... a5 {[%clk 0:00:14.7]} 33. Bd2 {[%clk
0:00:54.8]} 33... Rc8 {[%clk 0:00:14.2]} 34. Nd4 {[%clk 0:00:54.3]} 34... Rfc7
{[%clk 0:00:07.2]} 35. Rd6 {[%clk 0:00:51.3]} 35... b5 {[%clk 0:00:05.5]} 36.
Bxa5 {[%clk 0:00:47]} 36... Ra7 {[%clk 0:00:05.2]} 37. Bb4 {[%clk 0:00:46.3]}
37... Rb7 {[%clk 0:00:05.8]} 38. Rxf6 {[%clk 0:00:45.7]} 38... Rc1 {[%clk
0:00:06.1]} 39. Rc6 {[%clk 0:00:43.2]} 39... Rh1 {[%clk 0:00:03.7]} 40. Kg2
{[%clk 0:00:42.1]} 40... Rb1 {[%clk 0:00:03.5]} 41. Nf5 {[%clk 0:00:39.8]} 41...
h5 {[%clk 0:00:02.4]} 42. Rg6+ {[%clk 0:00:38.1]} 42... Kh7 {[%clk 0:00:02.7]}
43. Rg5 {[%clk 0:00:33.4]} 43... Rb2+ {[%clk 0:00:02.7]} 44. Kh3 {[%clk
0:00:33.8]} 44... Rc7 {[%clk 0:00:03.2]} 45. Rxh5+ {[%clk 0:00:33.4]} 45... Kg6
{[%clk 0:00:03.8]} 46. Rg5+ {[%clk 0:00:33.4]} 46... Kf6 {[%clk 0:00:04]} 47. e4
{[%clk 0:00:28.8]} 47... Rcc2 {[%clk 0:00:04]} 48. e5+ {[%clk 0:00:27.7]} 48...
Kf7 {[%clk 0:00:03.5]} 49. Rg7+ {[%clk 0:00:25.4]} 49... Ke8 {[%clk 0:00:04.1]}
50. Nd6+ {[%clk 0:00:22.2]} 50... Kf8 {[%clk 0:00:04.6]} 51. Rf7+ {[%clk
0:00:20.1]} 51... Kg8 {[%clk 0:00:05.3]} 52. Kg4 {[%clk 0:00:19.6]} 52... Rxh2
{[%clk 0:00:05.6]} 53. e6 {[%clk 0:00:19.7]} 53... Rbe2 {[%clk 0:00:05.2]} 54.
e7 {[%clk 0:00:19.3]} 54... Rh6 {[%clk 0:00:04]} 55. Rf8+ {[%clk 0:00:17.7]}
55... Kg7 {[%clk 0:00:04.5]} 56. Nf5+ {[%clk 0:00:17.2]} 1-0

[Event "Late-Titled-Tuesday-Blitz-January-16-2024"]
[Site "Chess.com"]
[Date "2024.01.16"]
[Round "6"]
[White "EcosseKillie"]
[Black "Road2GM3000"]
[Result "1-0"]
[WhiteElo "2278"]
[BlackElo "2470"]
[TimeControl "180+1"]
[EndTime "15:04:38 PST"]
[Termination "EcosseKillie won by resignation"]

1. d4 {[%clk 0:02:56.8]} 1... d5 {[%clk 0:02:59.6]} 2. Bg5 {[%clk 0:02:55]} 2...
c6 {[%clk 0:02:59.3]} 3. Nf3 {[%clk 0:02:54.5]} 3... Qb6 {[%clk 0:02:59.8]} 4.
b3 {[%clk 0:02:54.3]} 4... Nf6 {[%clk 0:02:58.2]} 5. e3 {[%clk 0:02:54.6]} 5...
Ne4 {[%clk 0:02:58.4]} 6. Bf4 {[%clk 0:02:54.2]} 6... Bf5 {[%clk 0:02:57.5]} 7.
Bd3 {[%clk 0:02:54.1]} 7... e6 {[%clk 0:02:57.3]} 8. O-O {[%clk 0:02:54.3]} 8...
Nd7 {[%clk 0:02:57.3]} 9. c4 {[%clk 0:02:53.3]} 9... Ndf6 {[%clk 0:02:56.7]} 10.
Ne5 {[%clk 0:02:47.7]} 10... Be7 {[%clk 0:02:52.5]} 11. c5 {[%clk 0:02:46.5]}
11... Qd8 {[%clk 0:02:50.7]} 12. f3 {[%clk 0:02:41.1]} 12... Nxc5 {[%clk
0:02:47.4]} 13. dxc5 {[%clk 0:02:38.9]} 13... Bxd3 {[%clk 0:02:46.3]} 14. Nxd3
{[%clk 0:02:37.8]} 14... Bxc5 {[%clk 0:02:47]} 15. Nxc5 {[%clk 0:02:37.7]} 15...
b6 {[%clk 0:02:45.4]} 16. Nd3 {[%clk 0:02:37.1]} 16... O-O {[%clk 0:02:44.9]}
17. Nd2 {[%clk 0:02:31.4]} 17... c5 {[%clk 0:02:45]} 18. e4 {[%clk 0:02:29.2]}
18... d4 {[%clk 0:02:45]} 19. b4 {[%clk 0:02:20.6]} 19... Rc8 {[%clk 0:02:31.6]}
20. bxc5 {[%clk 0:02:20.3]} 20... bxc5 {[%clk 0:02:32.5]} 21. Rc1 {[%clk
0:02:19.4]} 21... Qa5 {[%clk 0:02:27.9]} 22. Qc2 {[%clk 0:02:13.3]} 22... Nd7
{[%clk 0:02:24.2]} 23. Bd6 {[%clk 0:02:05.5]} 23... Rfd8 {[%clk 0:02:23.1]} 24.
Nxc5 {[%clk 0:01:59.4]} 24... Qb6 {[%clk 0:02:02]} 25. Nc4 {[%clk 0:01:55.6]}
25... Qc6 {[%clk 0:01:49.6]} 26. Nxd7 {[%clk 0:01:55.1]} 26... Rxd7 {[%clk
0:01:45.7]} 27. Bg3 {[%clk 0:01:38.2]} 27... Qc5 {[%clk 0:01:46.1]} 28. Bf2
{[%clk 0:01:37.8]} 28... Rdc7 {[%clk 0:01:46.1]} 29. Qd3 {[%clk 0:01:31.8]}
29... e5 {[%clk 0:01:44]} 30. Bg3 {[%clk 0:01:05]} 30... f6 {[%clk 0:01:43.5]}
31. Nd2 {[%clk 0:00:57.1]} 31... Qxc1 {[%clk 0:01:40.8]} 32. Rxc1 {[%clk
0:00:58]} 32... Rxc1+ {[%clk 0:01:41.5]} 33. Kf2 {[%clk 0:00:58.3]} 33... R1c2
{[%clk 0:01:41.2]} 34. Ke2 {[%clk 0:00:55]} 34... Kh8 {[%clk 0:01:39.9]} 35. f4
{[%clk 0:00:50.6]} 35... exf4 {[%clk 0:01:33.4]} 36. Bxf4 {[%clk 0:00:50.2]}
36... Rxa2 {[%clk 0:01:34.1]} 37. Qb3 {[%clk 0:00:46.8]} 37... Rac2 {[%clk
0:01:32.1]} 38. e5 {[%clk 0:00:40.6]} 38... R2c3 {[%clk 0:01:27.2]} 39. Qe6
{[%clk 0:00:36.3]} 39... R3c6 {[%clk 0:01:21.9]} 40. Qd5 {[%clk 0:00:29.8]}
40... Rc5 {[%clk 0:01:19.7]} 41. Qxd4 {[%clk 0:00:29.6]} 41... R5c6 {[%clk
0:01:03.3]} 42. exf6 {[%clk 0:00:29]} 42... Rxf6 {[%clk 0:01:03.5]} 43. Be5
{[%clk 0:00:27.8]} 43... Re8 {[%clk 0:01:04.2]} 44. Nf3 {[%clk 0:00:28.1]} 44...
Rf7 {[%clk 0:01:01.2]} 45. Kf2 {[%clk 0:00:26.3]} 45... h6 {[%clk 0:01:00.8]}
46. g3 {[%clk 0:00:21.8]} 46... Ref8 {[%clk 0:01:00.4]} 47. Kg2 {[%clk
0:00:21.6]} 47... Kg8 {[%clk 0:00:58.3]} 48. Nh4 {[%clk 0:00:20.3]} 48... a5
{[%clk 0:00:51]} 49. Kh3 {[%clk 0:00:19.1]} 49... Re8 {[%clk 0:00:49.3]} 50. Qd5
{[%clk 0:00:16.5]} 50... Re7 {[%clk 0:00:45.8]} 51. Nf5 {[%clk 0:00:15.2]} 51...
Rd7 {[%clk 0:00:46.5]} 52. Qa2 {[%clk 0:00:13.2]} 52... Kh7 {[%clk 0:00:47.1]}
53. Nxg7 {[%clk 0:00:09.8]} 53... Rd5 {[%clk 0:00:45.3]} 54. Qc2+ {[%clk
0:00:09.7]} 54... Kg8 {[%clk 0:00:43.7]} 55. Ba1 {[%clk 0:00:07.7]} 55... Rh5+
{[%clk 0:00:38.9]} 56. Kg2 {[%clk 0:00:07.5]} 56... Rd5 {[%clk 0:00:30.3]} 57.
Qc4 {[%clk 0:00:06.1]} 57... Rfd7 {[%clk 0:00:30.8]} 58. Nh5 {[%clk 0:00:04.8]}
58... Kh7 {[%clk 0:00:31.2]} 59. Nf6+ {[%clk 0:00:04.7]} 59... Kg6 {[%clk
0:00:31.9]} 60. Nxd5 {[%clk 0:00:05.5]} 60... Rc7 {[%clk 0:00:31.9]} 61. Qd4
{[%clk 0:00:05.7]} 61... Rc3 {[%clk 0:00:32.8]} 62. Qxc3 {[%clk 0:00:05.8]} 1-0

[Event "Late-Titled-Tuesday-Blitz-January-16-2024"]
[Site "Chess.com"]
[Date "2024.01.16"]
[Round "6"]
[White "ATM622"]
[Black "NMJeevanK"]
[Result "0-1"]
[WhiteElo "2479"]
[BlackElo "2583"]
[TimeControl "180+1"]
[EndTime "15:04:40 PST"]
[Termination "NMJeevanK won on time"]

1. d4 {[%clk 0:02:57.3]} 1... Nf6 {[%clk 0:02:58.9]} 2. c4 {[%clk 0:02:57.8]}
2... e6 {[%clk 0:02:58.8]} 3. g3 {[%clk 0:02:57.8]} 3... d5 {[%clk 0:02:58.1]}
4. Bg2 {[%clk 0:02:58.2]} 4... b6 {[%clk 0:02:55.9]} 5. Nf3 {[%clk 0:02:57.3]}
5... Bb7 {[%clk 0:02:53.8]} 6. Nbd2 {[%clk 0:02:57.5]} 6... Be7 {[%clk
0:02:53.5]} 7. O-O {[%clk 0:02:57.4]} 7... O-O {[%clk 0:02:53.7]} 8. Qc2 {[%clk
0:02:57.1]} 8... c5 {[%clk 0:02:53.2]} 9. dxc5 {[%clk 0:02:51.9]} 9... bxc5
{[%clk 0:02:52.3]} 10. b3 {[%clk 0:02:50.6]} 10... d4 {[%clk 0:02:48.2]} 11. Bb2
{[%clk 0:02:43.7]} 11... Nc6 {[%clk 0:02:46.3]} 12. a3 {[%clk 0:02:40.6]} 12...
Rb8 {[%clk 0:02:43.7]} 13. Rfd1 {[%clk 0:02:32.1]} 13... e5 {[%clk 0:02:43.7]}
14. Ng5 {[%clk 0:02:24.3]} 14... h6 {[%clk 0:02:39.8]} 15. Nge4 {[%clk
0:02:22.3]} 15... Nxe4 {[%clk 0:02:40]} 16. Bxe4 {[%clk 0:02:22.3]} 16... Qd7
{[%clk 0:02:14.6]} 17. Bf5 {[%clk 0:02:17.5]} 17... Qc7 {[%clk 0:02:14.5]} 18.
Rac1 {[%clk 0:01:46.5]} 18... Na5 {[%clk 0:02:09.9]} 19. Be4 {[%clk 0:01:36.5]}
19... Bxe4 {[%clk 0:02:07]} 20. Qxe4 {[%clk 0:01:35.3]} 20... Nxb3 {[%clk
0:02:05.2]} 21. Rc2 {[%clk 0:01:26.1]} 21... Nxd2 {[%clk 0:02:02.4]} 22. Rcxd2
{[%clk 0:01:27]} 22... Bg5 {[%clk 0:02:00.4]} 23. e3 {[%clk 0:01:23.5]} 23...
Rb3 {[%clk 0:01:47.8]} 24. h4 {[%clk 0:01:18.6]} 24... dxe3 {[%clk 0:01:35.7]}
25. Rd7 {[%clk 0:01:18.2]} 25... exf2+ {[%clk 0:01:33.2]} 26. Kf1 {[%clk
0:01:07.8]} 26... Qb6 {[%clk 0:01:15.8]} 27. Bxe5 {[%clk 0:00:54.2]} 27... Re3
{[%clk 0:00:53.8]} 28. Qd5 {[%clk 0:00:25.6]} 28... Bf6 {[%clk 0:00:42.9]} 29.
Bf4 {[%clk 0:00:22.3]} 29... Re1+ {[%clk 0:00:37.9]} 30. Rxe1 {[%clk 0:00:21.7]}
30... fxe1=Q+ {[%clk 0:00:38.8]} 31. Kxe1 {[%clk 0:00:22.6]} 31... Qb1+ {[%clk
0:00:36.4]} 32. Qd1 {[%clk 0:00:13.3]} 32... Re8+ {[%clk 0:00:35.5]} 33. Kf1
{[%clk 0:00:13.6]} 33... Qf5 {[%clk 0:00:31.6]} 34. Kg2 {[%clk 0:00:06]} 34...
Bd4 {[%clk 0:00:28]} 35. Rd5 {[%clk 0:00:03.9]} 35... Qe4+ {[%clk 0:00:26.3]}
36. Kh2 {[%clk 0:00:04.3]} 36... Qg6 {[%clk 0:00:14.3]} 37. Rd6 {[%clk 0:00:04]}
37... Qf5 {[%clk 0:00:13.3]} 38. Rd5 {[%clk 0:00:04.3]} 38... Qc8 {[%clk
0:00:13.4]} 39. Qf3 {[%clk 0:00:03.8]} 39... Qa6 {[%clk 0:00:12.1]} 40. Rd7
{[%clk 0:00:03.7]} 40... Qxc4 {[%clk 0:00:11.9]} 41. Bxh6 {[%clk 0:00:02.9]}
41... Re2+ {[%clk 0:00:06.6]} 42. Kh1 {[%clk 0:00:03]} 42... Re1+ {[%clk
0:00:05.5]} 43. Kh2 {[%clk 0:00:02.9]} 43... Qe2+ {[%clk 0:00:05.8]} 44. Qxe2
{[%clk 0:00:02.8]} 44... Rxe2+ {[%clk 0:00:06.7]} 45. Kh3 {[%clk 0:00:03]} 45...
gxh6 {[%clk 0:00:07.4]} 46. Rxa7 {[%clk 0:00:03.3]} 46... Kg7 {[%clk 0:00:07.7]}
47. a4 {[%clk 0:00:02.8]} 47... Ra2 {[%clk 0:00:07.8]} 48. a5 {[%clk 0:00:02.9]}
48... c4 {[%clk 0:00:08.2]} 49. Rd7 {[%clk 0:00:02.7]} 49... Bf6 {[%clk
0:00:08.2]} 50. Rc7 {[%clk 0:00:02.6]} 50... c3 {[%clk 0:00:08.5]} 51. Rc5
{[%clk 0:00:02.1]} 51... c2 {[%clk 0:00:08.6]} 52. a6 {[%clk 0:00:01.3]} 52...
Bd4 {[%clk 0:00:08.3]} 53. Rc4 {[%clk 0:00:01.7]} 53... Be3 {[%clk 0:00:08.5]}
54. a7 {[%clk 0:00:01.2]} 54... c1=Q {[%clk 0:00:08.8]} 55. a8=Q {[%clk
0:00:01.2]} 55... Rxa8 {[%clk 0:00:08]} 0-1

[Event "Late-Titled-Tuesday-Blitz-January-16-2024"]
[Site "Chess.com"]
[Date "2024.01.16"]
[Round "6"]
[White "diamonds13"]
[Black "mortngabriel"]
[Result "1-0"]
[WhiteElo "2364"]
[BlackElo "2510"]
[TimeControl "180+1"]
[EndTime "15:04:40 PST"]
[Termination "diamonds13 won on time"]

1. d4 {[%clk 0:03:00.9]} 1... Nf6 {[%clk 0:02:59.2]} 2. c4 {[%clk 0:03:01]} 2...
e6 {[%clk 0:02:59.4]} 3. Nc3 {[%clk 0:03:01.6]} 3... d5 {[%clk 0:02:59.6]} 4.
cxd5 {[%clk 0:03:00.6]} 4... exd5 {[%clk 0:02:59.8]} 5. Bg5 {[%clk 0:03:01.2]}
5... Bb4 {[%clk 0:03:00.4]} 6. e3 {[%clk 0:03:00.2]} 6... h6 {[%clk 0:03:00.5]}
7. Bh4 {[%clk 0:03:00.8]} 7... g5 {[%clk 0:03:01.1]} 8. Bg3 {[%clk 0:03:01.4]}
8... Ne4 {[%clk 0:03:02]} 9. Qc2 {[%clk 0:03:01.3]} 9... h5 {[%clk 0:03:01.2]}
10. Bd3 {[%clk 0:02:57.1]} 10... h4 {[%clk 0:02:54.3]} 11. Be5 {[%clk
0:02:56.2]} 11... f6 {[%clk 0:02:53.9]} 12. f3 {[%clk 0:02:56]} 12... Nxc3
{[%clk 0:02:26]} 13. bxc3 {[%clk 0:02:49.4]} 13... Ba5 {[%clk 0:02:20.4]} 14. f4
{[%clk 0:02:37.2]} 14... fxe5 {[%clk 0:02:16.6]} 15. Bg6+ {[%clk 0:02:36.4]}
15... Kf8 {[%clk 0:02:12.3]} 16. fxe5 {[%clk 0:02:35.9]} 16... Kg7 {[%clk
0:02:09.5]} 17. h3 {[%clk 0:02:30.7]} 17... Nc6 {[%clk 0:01:43.8]} 18. Ne2
{[%clk 0:02:29.8]} 18... Ne7 {[%clk 0:01:43.6]} 19. Bd3 {[%clk 0:02:27.6]} 19...
Rf8 {[%clk 0:01:43.5]} 20. g3 {[%clk 0:02:21.5]} 20... hxg3 {[%clk 0:01:22.1]}
21. Nxg3 {[%clk 0:02:21]} 21... Qe8 {[%clk 0:01:01.1]} 22. O-O-O {[%clk
0:02:12.3]} 22... c5 {[%clk 0:00:43.2]} 23. h4 {[%clk 0:02:02.2]} 23... g4
{[%clk 0:00:37.3]} 24. h5 {[%clk 0:01:53.3]} 24... c4 {[%clk 0:00:31.5]} 25. Bg6
{[%clk 0:01:53.1]} 25... Qb5 {[%clk 0:00:15.3]} 26. h6+ {[%clk 0:01:49.5]} 26...
Kh8 {[%clk 0:00:15.5]} 27. Rdf1 {[%clk 0:01:38.4]} 27... Be6 {[%clk 0:00:10.7]}
28. Nh5 {[%clk 0:01:32.9]} 28... Bxc3 {[%clk 0:00:09.6]} 29. Ng7 {[%clk
0:01:26.1]} 29... Bd7 {[%clk 0:00:06.6]} 30. Bf7 {[%clk 0:01:25.2]} 30... Bb4
{[%clk 0:00:05.5]} 31. Ne6 {[%clk 0:01:18]} 31... Bxe6 {[%clk 0:00:04.4]} 32.
Bxe6 {[%clk 0:01:17]} 32... Ba3+ {[%clk 0:00:04.9]} 33. Kd1 {[%clk 0:01:16.5]}
33... Qb2 {[%clk 0:00:05.2]} 34. Qxb2 {[%clk 0:01:11.5]} 34... Bxb2 {[%clk
0:00:06.1]} 35. Bxg4 {[%clk 0:01:11.5]} 35... Nc6 {[%clk 0:00:05.6]} 36. Be6
{[%clk 0:01:09.7]} 36... Ne7 {[%clk 0:00:04.2]} 37. Rf6 {[%clk 0:01:07.9]} 37...
Ba3 {[%clk 0:00:03]} 38. Rhf1 {[%clk 0:01:06.7]} 38... Rxf6 {[%clk 0:00:02.5]}
39. exf6 {[%clk 0:01:06.9]} 39... Ng6 {[%clk 0:00:02.9]} 40. Bxd5 {[%clk
0:01:06]} 40... Kh7 {[%clk 0:00:03.1]} 41. Be4 {[%clk 0:01:06.1]} 41... Kxh6
{[%clk 0:00:03.2]} 42. Rh1+ {[%clk 0:01:06]} 42... Kg5 {[%clk 0:00:03.4]} 43.
Rg1+ {[%clk 0:01:05.8]} 43... Kxf6 {[%clk 0:00:04.3]} 44. Rxg6+ {[%clk
0:01:06.2]} 44... Kf7 {[%clk 0:00:04.8]} 45. Rh6 {[%clk 0:01:04.1]} 45... Rb8
{[%clk 0:00:03.7]} 46. Bd5+ {[%clk 0:01:03.8]} 46... Ke7 {[%clk 0:00:03.3]} 47.
Bxc4 {[%clk 0:01:03.6]} 47... Bd6 {[%clk 0:00:03]} 48. e4 {[%clk 0:01:03]} 48...
Kd7 {[%clk 0:00:02.6]} 49. e5 {[%clk 0:01:02.5]} 49... Bf8 {[%clk 0:00:03.5]}
50. Rh7+ {[%clk 0:01:01.9]} 50... Kc6 {[%clk 0:00:04.4]} 51. Bb3 {[%clk
0:01:01.5]} 51... b5 {[%clk 0:00:04.6]} 52. Kc2 {[%clk 0:01:00.4]} 52... a5
{[%clk 0:00:04.8]} 53. a3 {[%clk 0:00:56.5]} 53... Bxa3 {[%clk 0:00:03.8]} 54.
Rh6+ {[%clk 0:00:53.5]} 54... Kc7 {[%clk 0:00:04.2]} 55. Bd5 {[%clk 0:00:53]}
55... a4 {[%clk 0:00:03.6]} 56. Rc6+ {[%clk 0:00:52.4]} 56... Kd7 {[%clk
0:00:03.7]} 57. e6+ {[%clk 0:00:51]} 57... Ke7 {[%clk 0:00:04.1]} 58. Rc7+
{[%clk 0:00:50.1]} 58... Ke8 {[%clk 0:00:03.6]} 59. Bc6+ {[%clk 0:00:49.1]}
59... Kf8 {[%clk 0:00:03.6]} 60. Rf7+ {[%clk 0:00:48]} 60... Kg8 {[%clk
0:00:04.2]} 61. d5 {[%clk 0:00:46.3]} 61... Bd6 {[%clk 0:00:03.7]} 62. Rd7
{[%clk 0:00:45.9]} 62... Bc5 {[%clk 0:00:04]} 63. d6 {[%clk 0:00:43.7]} 63...
Re8 {[%clk 0:00:02.3]} 64. Bd5 {[%clk 0:00:37]} 64... Rb8 {[%clk 0:00:01.8]} 65.
e7+ {[%clk 0:00:36.1]} 65... Kh8 {[%clk 0:00:02.2]} 66. Rd8+ {[%clk 0:00:36.2]}
1-0